Cogmind - Beta 13 @@@ ROGUE MODE // 2024.04.10 @ 16:59:21 Player: Kinga Result: Self-destructed Performance ------------- Evolutions (2) 1000 Regions Visited (7) 1400 Robots Destroyed (83) 415 Value Destroyed (1990) 1990 Prototype IDs (5) 100 Alien Tech Used (0) 0 Bonus (300) 300 TOTAL SCORE: 5205 Bonus ------- Aligned with FarCom 300 Cogmind --------- Core Integrity 312/550 Matter 175/300 Energy 105/280 System Corruption 10% Temperature Critical (516) Movement Core (1750) Ox34 Location -8/Materials Parts ------- > --- POWER (1) -------- Cooled Ion Engine (fused) > --- PROPULSION (3) --- (None) > --- UTILITY (5) ------ Huge Storage Unit Melee Analysis Suite Improved Light Armor Plating > --- WEAPON (2) ------- Guided Plasma Cannon Scythe > --- INVENTORY (25) --- Cooled Ion Engine Improved Deuterium Engine Large Storage Unit Structural Scanner Improved Utility Shielding Heavy Armor Plating Improved Light Armor Plating Heavy Laser Heavy Laser Heavy Laser Heavy Laser Heavy Assault Cannon Rocket Launcher Mini Grenade Launcher Peak State ------------ > --- POWER ------------ Cooled Ion Engine > --- PROPULSION ------- Light Treads Light Treads Light Treads > --- UTILITY ---------- Huge Storage Unit Improved Light Armor Plating Hacking Suite Hacking Suite Hacking Suite > --- WEAPON ----------- Heavy Laser Guided Plasma Cannon > --- INVENTORY -------- Cooled Ion Engine Light Treads Large Storage Unit Structural Scanner Light Armor Plating Improved Light Armor Plating Improved Light Armor Plating Improved Light Armor Plating Heavy Assault Cannon Rocket Launcher Mini Grenade Launcher [Rating: 33] Favorites ----------- Power Cooled Ion Engine Engine Cooled Ion Engine Propulsion Light Treads Treads Light Treads Wheel Armored Wheel Utility Hacking Suite Device Improved Heat Sink Storage Huge Storage Unit Processor Targeting Computer Hackware Hacking Suite Protection Improved Light Armor Plating Weapon Light Assault Rifle Energy Gun Heavy Laser Energy Cannon Guided Plasma Cannon Ballistic Gun Light Assault Rifle Ballistic Cannon Heavy Assault Cannon Launcher Rocket Launcher Slashing Weapon Scythe Build | -11 -10 -10 -9 -9 -9 -8 -8 ------- Run | Yrd Mat Min Mat Min Exi Min Mat Slots Evolved 4 | . . . 2 . . . 2 Power . | . . . . . . . . Propulsion 1 | . . . . . . . 1 Utility 3 | . . . 2 . . . 1 Weapon . | . . . . . . . . Parts Attached 68 | 7 4 1 28 5 4 . 19 Power 8 | 1 . . 4 1 . . 2 Engine 8 | 1 . . 4 1 . . 2 Core . | . . . . . . . . Reactor . | . . . . . . . . Propulsion 14 | 2 1 1 7 1 . . 2 Treads 13 | 2 1 1 6 1 . . 2 Leg . | . . . . . . . . Wheel 1 | . . . 1 . . . . Hover . | . . . . . . . . Flight . | . . . . . . . . Utility 21 | 1 1 . 9 2 2 . 6 Device 2 | . . . 1 . 1 . . Storage 3 | 1 . . 1 1 . . . Processor 2 | . . . 1 . . . 1 Hackware 4 | . . . 3 . . . 1 Protection 10 | . 1 . 3 1 1 . 4 Artifact . | . . . . . . . . Weapon 25 | 3 2 . 8 1 2 . 9 Energy Gun 6 | 2 . . 1 . . . 3 Energy Cannon 3 | . . . . . 1 . 2 Ballistic Gun 10 | 1 2 . 6 . 1 . . Ballistic Cannon 1 | . . . . 1 . . . Launcher 2 | . . . 1 . . . 1 Special Weapon . | . . . . . . . . Impact Weapon . | . . . . . . . . Slashing Weapon 3 | . . . . . . . 3 Piercing Weapon . | . . . . . . . . Special Melee Weapon . | . . . . . . . . Unidentified Prototypes 3 | . . . 1 . 2 . . Parts Lost 32 | . 1 3 11 4 . . 13 Power 4 | . . 1 1 1 . . 1 Propulsion 9 | . . 2 2 1 . . 4 Utility 11 | . . . 4 1 . . 6 Weapon 8 | . 1 . 4 1 . . 2 Highest Loss Streak 11 | . 1 2 5 1 . . 11 To Critical Strikes . | . . . . . . . . Average Slot Usage (%) 92 | . 92 94 87 90 95 100 96 Engine 11 | . 14 10 10 10 11 11 8 Treads 21 | . 28 26 13 22 22 22 25 Device 1 | . . . 5 . . . . Storage 11 | . 14 14 11 11 11 11 9 Processor 1 | . . . 4 . . . . Hackware 14 | . . . 14 22 22 22 21 Protection 8 | . 7 14 4 11 11 11 12 Energy Gun 2 | . 2 . 3 . . . 9 Energy Cannon 1 | . . . . . 7 11 . Ballistic Gun 13 | . 25 28 18 5 7 11 . Ballistic Cannon 1 | . . . . 8 3 . . Naked Turns . | . . . . . . . . Heaviest Build 104 | 13 16 16 39 103 104 104 104 Greatest Support 60 | 40 40 40 40 40 40 40 60 Greatest Overweight (x) 4 | . . . 4 2 2 2 1 Average Overweight (x) . | . . . . 1 2 2 1 Largest Inventory Capacity 25 | 8 8 8 15 25 25 25 25 Average Capacity 16 | 6 8 8 10 24 25 25 25 Most Carried 22 | 1 3 4 15 16 15 14 22 Average Carried 8 | . 1 2 5 13 13 14 19 Final Capacity 25 | 8 8 8 15 25 25 25 25 Final Carried 16 | 1 3 4 15 13 14 14 16 Class Distribution -------------------- 52% | Scavenger-Mutant 27% | Mutant 19% | Hacker-Mutant Dominant Class ---------------- Mutant | -10/Materials Mutant | -10/Mines Scavenger-Mutant | -9/Materials Hacker-Mutant | -9/Mines Scavenger-Mutant | -9/Exiles Scavenger-Mutant | -8/Mines Scavenger-Mutant | -8/Materials Resources | -11 -10 -10 -9 -9 -9 -8 -8 ----------- Run | Yrd Mat Min Mat Min Exi Min Mat Matter Collected 1411 | 181 278 63 567 226 . . 96 Remotely . | . . . . . . . . Salvage Created 2687 | . 480 154 1280 496 . . 277 Parts 180 | . 41 7 83 23 . . 26 Haulers Intercepted 6 | . 1 . 5 . . . . Recyclers Shooed 4 | . 1 . 3 . . . . Parts Field Recycled . | . . . . . . . . Retrieved Matter . | . . . . . . . . Parts Self-Destructed . | . . . . . . . . Prevented . | . . . . . . . . Kills | -11 -10 -10 -9 -9 -9 -8 -8 ------- Run | Yrd Mat Min Mat Min Exi Min Mat Combat Hostiles Destroyed 60 | . 15 5 18 10 . . 12 Melee 3 | . . . . . . . 3 Guns 40 | . 15 5 16 4 . . . Cannons 8 | . . . . 6 . . 2 AOE 9 | . . . 2 . . . 7 Classes Destroyed 11 | . 4 . 5 2 . . . Worker 3 | . . . 3 . . . . Builder 2 | . . . . 1 . . 1 Hauler 6 | . 1 . 5 . . . . Recycler 5 | . . . 3 2 . . . Operator 5 | . 1 . 4 . . . . Watcher 3 | . . . 3 . . . . Swarmer 19 | . 6 3 3 . . . 7 Grunt 30 | . 9 2 8 6 . . 5 Duelist 2 | . . . 1 1 . . . Sentry 8 | . . . 6 2 . . . Assembled 1 | . . . . 1 . . . Best Kill Streak 10 | . 4 2 6 3 . . 10 Combat Bots Only 10 | . 4 2 3 3 . . 10 Max Kills in Single Turn 4 | . 1 1 3 2 . . 4 Gunslinging 1 | . . . 1 . . . . Exploded 4 | . . . 1 . . . 4 Melee 1 | . . . . . . . 1 Uniques/NPCs Destroyed . | . . . . . . . . Combat | -11 -10 -10 -9 -9 -9 -8 -8 -------- Run | Yrd Mat Min Mat Min Exi Min Mat Hostile Shots Fired 413 | . 69 52 149 56 . . 87 Missed 132 | . 30 20 46 11 . . 25 Damage Taken 4531 | . 413 390 1349 667 . . 1712 Core 647 | . 53 42 186 128 . . 238 Absorbed by Shields . | . . . . . . . . Core Remaining (%) 61 | 100 . 62 . . . 21 . Volleys Fired 255 | . 67 29 108 33 . . 18 Largest 2 | . 2 2 2 2 . . 2 Hottest 138 | . 70 40 63 60 . . 138 Shots Fired 465 | . 130 58 206 46 . . 25 Gun 430 | . 130 58 202 26 . . 14 Cannon 27 | . . . . 20 . . 7 Launcher 8 | . . . 4 . . . 4 Special . | . . . . . . . . Kinetic 387 | . 116 58 167 46 . . . Thermal 69 | . 14 . 35 . . . 20 Explosive 8 | . . . 4 . . . 4 Electromagnetic 1 | . . . . . . . 1 Robot Hit Streak 24 | . 9 3 16 24 . . 7 Robot Miss Streak 7 | . 3 4 7 2 . . 3 Penetration Max 1 | . . . . 1 . . . Secondary Targets 10 | . 4 2 3 1 . . . Max Gunslinging Chain 1 | . 1 1 1 1 . . . Shots Hit Robots 323 | . 80 28 142 39 . . 34 Core Hits 134 | . 34 10 60 17 . . 13 Critical Kills 1 | . . . 1 . . . . Critical Parts Destroyed 3 | . 2 . 1 . . . . Critical Strikes 7 | . 2 . 2 2 . . 1 Destroy 4 | . 2 . 2 . . . . Blast 2 | . . . . 2 . . . Sever 1 | . . . . . . . 1 Melee Attacks 19 | . . . . . . . 19 Impact . | . . . . . . . . Slashing 19 | . . . . . . . 19 Piercing . | . . . . . . . . Sneak Attacks 1 | . . . . . . . 1 Combat Hostiles . | . . . . . . . . Follow-up Attacks 1 | . . . . . . . 1 Damage Inflicted 5234 | . 802 302 1854 1060 . . 1216 Guns 3022 | . 778 302 1480 293 . . 169 Cannons 990 | . . . . 767 . . 223 Explosions 702 | . . . 327 . . . 375 Melee 443 | . . . . . . . 443 Ramming 77 | . 24 . 47 . . . 6 Kinetic 3227 | . 664 302 1201 1060 . . . Thermal 764 | . 114 . 279 . . . 371 Explosive 702 | . . . 327 . . . 375 Electromagnetic 21 | . . . . . . . 21 Impact . | . . . . . . . . Slashing 443 | . . . . . . . 443 Piercing . | . . . . . . . . Highest Corruption 10 | . . . . . . . 10 Average Corruption 10 | . . . . . . . 10 Corruption Purged . | . . . . . . . . Corruption Blocked . | . . . . . . . . Effects 1 | . . . . . . . 1 Parts Fused 1 | . . . . . . . 1 Overload Shots . | . . . . . . . . Overflow Damage 108 | . . . 36 44 . . 28 Projectiles 44 | . . . . 44 . . . Explosions 64 | . . . 36 . . . 28 Melee . | . . . . . . . . Knockbacks 3 | . 1 . 1 1 . . . Impact 2 | . 1 . 1 . . . . Kinetic 1 | . . . . 1 . . . Secondary . | . . . . . . . . Self-Inflicted Damage 71 | . . . 71 . . . . Shots 2 | . . . 2 . . . . Rammed 14 | . 5 . 8 . . . 1 Targets Rammed 16 | . 5 . 10 . . . 1 Kicked . | . . . . . . . . Crushed 2 | . . . 2 . . . . Highest Temperature 516 | . 168 32 44 69 . . 516 Average Temperature 58 | . 34 10 15 24 . . 195 Received Heat Transfer 1587 | . 177 183 546 267 . . 414 Effects 2 | . . . . . . . 2 Shutdowns 1 | . . . . . . . 1 Interference 1 | . . . . . . . 1 Siege Activations . | . . . . . . . . Robots Corrupted . | . . . . . . . . Combat Hostiles . | . . . . . . . . Parts Fried . | . . . . . . . . Impact Corruptions . | . . . . . . . . Robots Melted . | . . . . . . . . Combat Hostiles . | . . . . . . . . Parts Melted 1 | . . . 1 . . . . Heat Transferred 1771 | . 333 . 625 . . . 813 Parts Sabotaged . | . . . . . . . . Parts Stolen . | . . . . . . . . Parts Stripped . | . . . . . . . . Power Chain Reactions . | . . . . . . . . Alert | -11 -10 -10 -9 -9 -9 -8 -8 ------- Run | Yrd Mat Min Mat Min Exi Min Mat Peak Influence 295 | . 237 217 295 192 . . 253 Initial 84 | . . 52 84 7 . . . Average 105 | . 125 104 125 96 . . 62 Maximum Alert Level 1 | . 1 1 1 . . . 1 Low Security (%) 90 | 100 90 92 85 100 . 100 92 Level 1 9 | . 10 7 14 . . . 7 Level 2 . | . . . . . . . . Level 3 . | . . . . . . . . Level 4 . | . . . . . . . . Level 5 . | . . . . . . . . High Security . | . . . . . . . . Max Security . | . . . . . . . . Squads Dispatched 10 | . 5 . 3 . . . 2 Investigation 4 | . 3 . . . . . 1 Extermination . | . . . . . . . . Reinforcement 6 | . 2 . 3 . . . 1 Assault . | . . . . . . . . Garrison . | . . . . . . . . Intercept . | . . . . . . . . Searches Triggered . | . . . . . . . . Construction Impeded . | . . . . . . . . Haulers Reinforced . | . . . . . . . . Active Scanning Responses . | . . . . . . . . Cargo Convoy Interrupts . | . . . . . . . . Stealth | -11 -10 -10 -9 -9 -9 -8 -8 --------- Run | Yrd Mat Min Mat Min Exi Min Mat Distress Signals 4 | . . . 2 . . . 2 Communications Jammed . | . . . . . . . . Distress Signals . | . . . . . . . . Times Spotted 108 | . 31 10 36 12 . . 19 Peak Tracking Total 8 | . 6 5 5 3 . . 8 Tactical Retreats 5 | . . 3 . 1 . . 1 Traps | -11 -10 -10 -9 -9 -9 -8 -8 ------- Run | Yrd Mat Min Mat Min Exi Min Mat Traps Triggered 3 | . 2 . 1 . . . . Indirectly . | . . . . . . . . Trap Hack Attempts . | . . . . . . . . Triggered . | . . . . . . . . Disarmed . | . . . . . . . . Reprogrammed . | . . . . . . . . Reused . | . . . . . . . . Traps Extracted . | . . . . . . . . Installed . | . . . . . . . . Triggered . | . . . . . . . . Machines | -11 -10 -10 -9 -9 -9 -8 -8 ---------- Run | Yrd Mat Min Mat Min Exi Min Mat Machines Disabled . | . . . . . . . . Max in Single Turn . | . . . . . . . . Machines Repaired . | . . . . . . . . Machines Dismantled . | . . . . . . . . Machines Sabotaged . | . . . . . . . . Overloaded Fab Kills . | . . . . . . . . Hacking | -11 -10 -10 -9 -9 -9 -8 -8 --------- Run | Yrd Mat Min Mat Min Exi Min Mat Machines Accessed 14 | . 6 . 4 . . . 4 Terminals 14 | . 6 . 4 . . . 4 Fabricators . | . . . . . . . . Repair Stations . | . . . . . . . . Recycling Units . | . . . . . . . . Scanalyzers . | . . . . . . . . Garrison Access . | . . . . . . . . Total Hacks 37 | . 15 . 12 . . . 10 Successful 19 | . 4 . 9 . . . 6 Failed 18 | . 11 . 3 . . . 4 Catastrophic 4 | . 3 . 1 . . . . Database Lockouts . | . . . . . . . . Manual 38 | . 16 . 11 . 1 . 10 Terminals 37 | . 15 . 12 . . . 10 Fabricators . | . . . . . . . . Repair Stations . | . . . . . . . . Recycling Units . | . . . . . . . . Scanalyzers . | . . . . . . . . Garrison Access . | . . . . . . . . Terminal Hacks 11 | . 2 . 7 . . . 2 Record 1 | . . . 1 . . . . Prototype ID Bank 1 | . 1 . . . . . . Branch Access Points 1 | . . . 1 . . . . Terminal Index 3 | . 1 . 1 . . . 1 Unreport Threat 3 | . . . 3 . . . . Hauler Manifests 2 | . . . 1 . . . 1 Fabricator Hacks . | . . . . . . . . Repair Station Hacks . | . . . . . . . . Recycling Unit Hacks . | . . . . . . . . Scanalyzer . | . . . . . . . . Garrison Access Hacks . | . . . . . . . . Unauthorized Hacks 8 | . 2 . 2 . . . 4 Terminals 8 | . 2 . 2 . . . 4 Botnet 8 | . 2 . 2 . . . 4 Fabricators . | . . . . . . . . Repair Stations . | . . . . . . . . Recycling Units . | . . . . . . . . Scanalyzers . | . . . . . . . . Garrison Access . | . . . . . . . . Data Cores Recovered 1 | . . . 1 . . . . Used . | . . . . . . . . Hacking Detections 13 | . 5 . 4 . . . 4 Full Trace Events 5 | . 4 . . . . . 1 Feedback Events . | . . . . . . . . Feedback Blocked . | . . . . . . . . Robot Schematics Acquired . | . . . . . . . . Robots Built . | . . . . . . . . Authchips . | . . . . . . . . Time . | . . . . . . . . Total Robot Build Rating . | . . . . . . . . Part Schematics Acquired . | . . . . . . . . Parts Built . | . . . . . . . . Authchips . | . . . . . . . . Time . | . . . . . . . . Total Part Build Rating . | . . . . . . . . Parts Repaired . | . . . . . . . . Time . | . . . . . . . . Parts Recycled . | . . . . . . . . Recycled Matter . | . . . . . . . . Retrieved Matter . | . . . . . . . . Retrieved Components . | . . . . . . . . Parts Scanalyzed . | . . . . . . . . Part Schematics Acquired . | . . . . . . . . Parts Damaged . | . . . . . . . . Bothacking | -11 -10 -10 -9 -9 -9 -8 -8 ------------ Run | Yrd Mat Min Mat Min Exi Min Mat Used RIF Installer . | . . . . . . . . Robots Hacked . | . . . . . . . . Non-combat . | . . . . . . . . Combat . | . . . . . . . . Robot Hacks Applied . | . . . . . . . . Relay Couplers Released . | . . . . . . . . Fabnet Peak Effective % . | . . . . . . . . Robots Rewired . | . . . . . . . . Allies Hacked . | . . . . . . . . Hacks Repelled . | . . . . . . . . Allies | -11 -10 -10 -9 -9 -9 -8 -8 -------- Run | Yrd Mat Min Mat Min Exi Min Mat Total Allies . | . . . . . . . . Largest Group . | . . . . . . . . Highest-Rated Group . | . . . . . . . . Highest-Rated Ally . | . . . . . . . . Total Orders . | . . . . . . . . Ally Attacks . | . . . . . . . . Total Damage . | . . . . . . . . Kills . | . . . . . . . . Allies Corrupted . | . . . . . . . . Allies Melted . | . . . . . . . . Intel | -11 -10 -10 -9 -9 -9 -8 -8 ------- Run | Yrd Mat Min Mat Min Exi Min Mat Robot Analysis Total . | . . . . . . . . Derelict Logs Recovered 1 | . . . . 1 . . . Drone Launches . | . . . . . . . . Drone Recoveries . | . . . . . . . . Exploration | -11 -10 -10 -9 -9 -9 -8 -8 ------------- Run | Yrd Mat Min Mat Min Exi Min Mat Turns Passed 5501 | 74 1110 217 1572 590 1092 109 737 Spaces Moved 2104 | 40 571 82 699 160 340 35 177 Core 111 | 3 . . 108 . . . . Treads 1993 | 37 571 82 591 160 340 35 177 Legs . | . . . . . . . . Wheels . | . . . . . . . . Hover . | . . . . . . . . Flight . | . . . . . . . . Fastest Speed 50 | 50 160 160 150 160 320 320 240 Average Speed 210 | 151 160 160 171 312 320 320 240 Slowest Speed 320 | 160 160 160 250 320 320 320 240 Overloaded Moves . | . . . . . . . . Propulsion Burnouts . | . . . . . . . . Robots Hopped . | . . . . . . . . Cave-ins Triggered 1 | . . . . . . . 1 Exploration Rate (%) 41 | 5 89 28 63 45 62 17 25 Regions Visited 7 Branch Regions 4 Pre-discovered Areas . | . . . . . . . . Known Exits Taken 1 | . . . 1 . . . . Unknown Exits Taken 6 | 1 1 1 . 1 1 1 . Scrap Searched 1 | . . . . 1 . . . Spaces Dug 1 | . . . . . . . 1 Terrain Destroyed 72 | . . . 30 11 . . 31 Melee 1 | . . . . . . . 1 Projectile 11 | . . . . 11 . . . AOE 60 | . . . 30 . . . 30 Terrain Rammed . | . . . . . . . . Walls Destroyed . | . . . . . . . . Machines Disabled . | . . . . . . . . Actions | -11 -10 -10 -9 -9 -9 -8 -8 --------- Run | Yrd Mat Min Mat Min Exi Min Mat Total 2705 | 50 652 116 876 199 346 34 432 Wait 196 | 2 3 3 . . . . 188 Move 2097 | 39 570 81 698 159 339 34 177 Hop . | . . . . . . . . Pick Up 34 | 1 2 2 21 1 . . 7 Fast Attach 33 | 7 4 . 14 . 3 . 5 Attach 24 | . . 1 9 4 1 . 9 Detach 6 | . . . 1 1 1 . 3 Swap 11 | . . . 5 1 . . 5 Drop 15 | 1 1 . 10 . 2 . 1 Fire 255 | . 67 29 108 33 . . 18 Melee 18 | . . . . . . . 18 Ram . | . . . . . . . . Kick . | . . . . . . . . Crush 16 | . 5 . 10 . . . 1 Escape Stasis . | . . . . . . . . Rewire . | . . . . . . . . Trap . | . . . . . . . . Miscellaneous . | . . . . . . . . Route ------- -11/Scrapyard -10/Materials (discovered 3 exits: *Mat x2 / [*Min]) -10/Mines -9/Materials (discovered 2 exits: *Mat / *Min) -9/Mines (discovered 2 exits: *Mat / *Exi) -9/Exiles -8/Mines -8/Materials History --------- Turn | Location | Event 45 | -11/Scrapyard | Discovered new exit (range 15) 75 | -11/Scrapyard | Entered Materials 216 | -10/Materials | Discovered new exit (range 16) 306 | -10/Materials | Build established: Mutant 391 | -10/Materials | Discovered new exit (range 16) 588 | -10/Materials | Discovered new exit (range 16) 1185 | -10/Materials | Entered Mines 1195 | -10/Mines | Met a Derelict bent on vengeance 1394 | -10/Mines | Discovered new exit (range 5) 1402 | -10/Mines | Entered Materials 1402 | -9/Materials | Evolved 2 slots: Utility x2 1578 | -9/Materials | Lost 5 parts (1p1n2u1w) 1877 | -9/Materials | Build established: Scavenger-Mutant 2072 | -9/Materials | Discovered new exit (range 7) 2351 | -9/Materials | Lost 5 parts (1n2u2w) 2608 | -9/Materials | Discovered new exit (range 8) 2851 | -9/Materials | Identified exit to Mines 2974 | -9/Materials | Entered Mines 2980 | -9/Mines | Core integrity fell below 50% 3117 | -9/Mines | Assembled infested the area 3141 | -9/Mines | Learned Materials garrison access intel 3388 | -9/Mines | Discovered new exit (range 6) 3422 | -9/Mines | Build established: Hacker-Mutant 3551 | -9/Mines | Deemed a non-threat by the Exiles lab entrance 3551 | -9/Mines | Discovered new exit (range 5) 3564 | -9/Mines | Entered Exiles 3641 | -9/Exiles | Met 8R-AWN 3692 | -9/Exiles | Met EX-HEX 3782 | -9/Exiles | Met EX-BIN 3827 | -9/Exiles | Aligned with FarCom system 3830 | -9/Exiles | Given EX-Vault access code 3904 | -9/Exiles | Opened EX-Vault 3923 | -9/Exiles | Found Prototype Device 3923 | -9/Exiles | Identified PSU Rigger 3934 | -9/Exiles | Found Prototype Energy Cannon 3934 | -9/Exiles | Identified Gui. Plasma Cannon 4007 | -9/Exiles | Warned to stay clear of 0b10 Research branches 4090 | -9/Exiles | Met EX-DEC 4222 | -9/Exiles | Build established: Scavenger-Mutant 4266 | -9/Exiles | Discovered new exit (range 10) 4656 | -9/Exiles | Left Exiles lab with Gui. Plasma Cannon 4656 | -9/Exiles | Entered Mines 4736 | -8/Mines | Discovered new exit (range 10) 4765 | -8/Mines | Entered Materials 4765 | -8/Materials | Evolved 2 slots: Propulsion x1, Utility x1 4766 | -8/Materials | Loaded intel: 1 garrison access location 5130 | -8/Materials | Destroyed 10 combat bots 5480 | -8/Materials | Crushed by falling debris 5480 | -8/Materials | System corruption reached 10% 5502 | -8/Materials | Self-destructed Last Messages --------------- 05489_ U-05 Engineer lays Concrete. 05491_ K-01 Serf collects debris. 05491_ U-05 Engineer lays Concrete. 05491_ K-01 Serf collects debris. 05492_ U-05 Engineer lays Concrete. 05493_ Knocked back. 05493_ U-05 Engineer lays Concrete. 05495_ K-01 Serf collects debris. 05497_ Critical hit (Burn: +37). 05497_ T-07 Excavator is excavating. 05497_ K-01 Serf collects debris. 05498_ G-47 Trooper destroyed. 05498_ Knocked back. 05499_ Acquired 4 matter. 05499_ U-05 Engineer lays Concrete. 05500_ G-47 Trooper destroyed. 05500_ U-05 Engineer builds a Wall. 05501_ T-07 Excavator is excavating. 05502_ Overheating: System interference. 05502_ Gui. Plasma Cannon temporarily disabled. Map ----- +----------------------------------------------------+ | ?????????????????????????????????????????????????? | | ?????????????????????????????????????????????????? | | ?????????????????????????????????????????????????? | | ?????????????????????????????????????????????????? | | ?????????????????????????????????????????????????? | | ?????????????????????????????????????????????????? | | ?????????????????????????????????????????????????? | | ?????????????????????????????????????????????????? | | ?????????????????????????????????????????????????? | | ?????????????????????????????????????????????????? | | ??????????????????????######?????????????????????? | | ??????????????????????# T #?????????????????????? | | ???????????????########! #?????????????????????? | | ???????????????# ! # #?????????????????????? | | ???????????????#**/ # #?????????????????????? | | ???????????????#**/ # a !#????w????????????????? | | ???????????????#*/ # #?????????????????????? | | ???????????????# # #?????#???????????????? | | ???????????????#! #%kk #??## ####????????????? | | ???????????????####+###%%k=#? ####?????????? | | ????????????????# ###H### ????????? | | ??? ##### T" =!%=%g^! ????????? | | ??? " %!!*=* ????????? | | ??? ##### !!=%= ????? | | ????????????????# ###%### % #???? | | ????????????????### #### @ #? #### = ???? | | ??????????????????# #??# #??#+##### ???? | | ??????????????????# #??# #????????? w * #???? | | ??????????????????# #??# #????????? [ #???? | | ??????????????????# #??# #?????????# [ #???? | | ??????????????????# #??#ut #????????## #???? | | ??????????????????# #??#u####????????# #???? | | ?????????????######/#####????????????? ##### | | ?????????????# # #????????????## # | | ?????????????+ # """ #???Y????????? w % # | | ?????????"?"?# # """ #??????????????# # | | ?????????"G"?# # """ #??????????????# # "S | | ??????????"??# # [#????????????### #%""" | | ???####??????# # """ #????????????#"" + ="" | | ??##! ######## # """ #????????????#T # | | ??#! =# """ ########?????### ##### | | ??#! +* # #???????# #???? | | ??#! #=""" # """ #???????# ##### | | ??#! ####+### # """ # """ #???????# **# | | ??##! ## ## # """ # """ #???????# # | | ???##### T ## # # #?#??#??# # | | ???????# ## ########? ? ## ##?# # | | ???????# /# ##########+########### ==# | | ???????# # ==# | | ???????# # ##### | +----------------------------------------------------+ Best States ------------- Heat Dissipation 42 Energy Generation 16 Energy Capacity 290 Matter Stores 300 Matter Capacity 300 Sight Range 16 Terrain Scan Density 10 Armor Coverage 300 Utility Shielding 66 Evasion (%) 40 Targeting Accuracy 5 Melee Accuracy 5 Recoil Reduction 3 Offensive Hacking 30 Item Schematics ----------------- None Robot Schematics ------------------ None Fabricated ------------ Nothing Alien Tech Used ----------------- None Achievements -------------- None Challenges ------------ None Game ------ Seed LegThiefFirepult Manual? 0 Play Time 00:32:23 Cumulative 19.2 hours Start 2024.04.10 @ 16:28:58 End 2024.04.10 @ 16:59:21 Sessions 1 Manual Loads 0 Difficulty Rogue Special Mode None Game No. 30 Rogue 30 Adventurer 0 Explorer 0 Win Type - Total 1 Types 1/0/0/0/0/0/0/0/0 Lore% 16 Gallery% 33 Achievement% 30 Wizard Run 0 Options --------- Layout 0 ASCII 0 Keyboard 0 Movement Numpad Keybinds 0 Fullscreen 2 Font 18/SmallcapsGlow Map View 76x50 Zoom Use 0% Tactical HUD 1 Map Filters NONE Filters NONE Steam 1 RUN: 8f6fd2b4-46bb-48fb-915c-dfe0ab1de8e4